bitfinex-derivatives/quotes_BTCF0:USTF0_20240820
["timestamp","ask_amount","ask_price","bid_price","bid_amount"]
[1724170746968,0.23896662,58973.0,58972.0,0.07106722]
[1724170747673,0.23896662,58973.0,58972.0,0.00325422]
[1724170747674,0.59076662,58973.0,58972.0,0.00325422]
[1724170747876,0.64127419,58973.0,58972.0,0.00325422]
[1724170748072,0.64127419,58973.0,58972.0,0.07106722]
[1724170748274,0.59076662,58973.0,58972.0,0.07106722]
[1724170748475,0.64127419,58973.0,58972.0,0.07106722]
[1724170748775,0.59076662,58973.0,58972.0,0.07106722]
[1724170748976,0.17115462,58973.0,58972.0,0.07106722]
[1724170750871,0.22166219,58973.0,58972.0,0.07106722]
[1724170751475,0.17115462,58973.0,58972.0,0.07106722]
[1724170751979,0.2218179,58973.0,58972.0,0.07106722]
[1724170752167,0.42512983,58976.0,58972.0,0.07106722]
[1724170752168,0.05066328,58976.0,58972.0,1.27277422]
[1724170752368,0.05066328,58982.0,58981.0,0.067803]
[1724170752674,0.00025422,58983.0,58982.0,0.067802]
[1724170753073,0.00025422,58983.0,58982.0,0.576442]
[1724170753271,0.00031569,58983.0,58982.0,0.644244]
[1724170753981,0.00031569,58983.0,58982.0,0.647244]
[1724170754177,0.05066328,58987.0,58982.0,0.647244]
[1724170754178,0.05066328,58987.0,58986.0,0.067797]
[1724170754474,0.05064356,58989.0,58988.0,0.067795]
[1724170754875,0.05064356,58991.0,58990.0,0.067793]
[1724170755072,0.15,58991.0,58990.0,0.067793]
[1724170757585,0.15,58991.0,58990.0,0.068793]
[1724170757586,0.155,58991.0,58990.0,0.068793]
[1724170757975,0.158,58991.0,58990.0,0.068793]
[1724170758187,0.225791,58991.0,58990.0,0.068793]
[1724170759072,0.293582,58991.0,58990.0,0.001]
[1724170762782,0.225791,58991.0,58990.0,0.001]
[1724170763077,0.27634167,58991.0,58990.0,0.001]
[1724170763285,0.225791,58991.0,58990.0,0.001]
[1724170763783,0.27634167,58991.0,58990.0,0.001]
[1724170763979,0.225791,58991.0,58990.0,0.001]
[1724170764187,0.225791,58991.0,58979.0,0.067805]
[1724170764188,0.50856,58990.0,58973.0,0.067811]
[1724170764374,0.780411,58974.0,58973.0,0.067811]
[1724170764678,0.92313676,58974.0,58966.0,3.77]
[1724170764879,0.3518,58967.0,58964.0,0.3608]
[1724170765084,0.067821,58965.0,58964.0,0.3608]
[1724170765381,0.067821,58965.0,58959.0,0.3608]
[1724170765382,0.066827,58960.0,58959.0,0.3608]
[1724170765582,0.066827,58960.0,58952.0,0.3608]
[1724170765583,0.5018,58960.0,58952.0,0.3608]
[1724170765889,0.5018,58960.0,58953.0,3.77]
[1724170765890,0.3518,58954.0,58953.0,3.77]
[1724170766073,0.3518,58954.0,58953.0,3.837835]
[1724170766074,0.5018,58954.0,58953.0,3.837835]
[1724170766275,0.5008,58954.0,58953.0,3.837835]
[1724170766478,0.568634,58954.0,58953.0,3.77]
[1724170766678,0.568634,58954.0,58948.0,0.00025422]
[1724170767285,0.568634,58954.0,58950.0,0.067838]
[1724170767777,0.568634,58954.0,58949.0,3.77]
[1724170767778,0.067839,58950.0,58949.0,3.77]
[1724170767980,0.06784,58949.0,58948.0,0.00025422]
[1724170768181,0.21784,58949.0,58948.0,0.00025422]
[1724170768374,0.21784,58949.0,58948.0,3.813e-05]
[1724170768375,0.21484,58949.0,58948.0,3.813e-05]
[1724170769279,0.21584,58949.0,58948.0,3.813e-05]
[1724170769579,0.56764,58949.0,58948.0,3.813e-05]
[1724170770380,0.56564,58949.0,58948.0,3.813e-05]
[1724170770981,0.56564,58949.0,58948.0,0.00203813]
[1724170772092,0.21384,58949.0,58948.0,0.00203813]
[1724170773987,1.1906,58949.0,58937.0,0.067853]
[1724170774184,0.067851,58940.0,58937.0,0.067853]
[1724170774381,0.217851,58940.0,58937.0,0.067853]
[1724170774586,0.217851,58940.0,58938.0,0.067852]
[1724170775783,0.067851,58939.0,58938.0,0.067852]
[1724170776090,0.217851,58939.0,58938.0,0.067852]
[1724170777287,0.390051,58939.0,58938.0,0.067852]
[1724170777785,0.391051,58939.0,58938.0,0.067852]
[1724170778492,0.067854,58937.0,58936.0,0.00018038]
[1724170778683,0.217854,58937.0,58936.0,0.00018038]
[1724170780093,0.285708,58937.0,58936.0,0.00018038]
[1724170780384,0.65503261,58937.0,58936.0,0.00018038]
[1724170780683,0.135714,58934.0,58933.0,0.00025446]
[1724170780888,0.637514,58934.0,58933.0,0.00025446]
[1724170781086,1.546554,58934.0,58933.0,0.00025446]
[1724170781487,1.47884243,58934.0,58933.0,0.00025446]
[1724170781687,1.07884243,58934.0,58933.0,0.00025446]
[1724170781987,1.47984243,58934.0,58933.0,0.00025446]
[1724170782390,1.48541175,58934.0,58933.0,0.00025446]
[1724170782783,1.55326875,58934.0,58933.0,0.00025446]
[1724170782982,1.5616188,58934.0,58933.0,0.00025446]
[1724170784488,0.067873,58920.0,58919.0,0.067874]
[1724170784683,0.067874,58919.0,58914.0,0.1837]
[1724170784891,0.067874,58919.0,58907.0,0.51335994]
[1724170784892,0.067877,58918.0,58917.0,0.067876]
[1724170785082,0.217877,58918.0,58917.0,0.067876]
[1724170785477,0.15,58918.0,58907.0,0.428687]
[1724170785691,0.067878,58917.0,58916.0,0.067877]
[1724170785889,0.217878,58917.0,58916.0,0.067877]
[1724170788397,0.218878,58917.0,58916.0,0.067877]
[1724170788597,0.067881,58914.0,58913.0,0.067881]
[1724170788798,0.067881,58913.0,58912.0,0.00025446]
[1724170788993,0.217881,58913.0,58912.0,0.00025446]
[1724170789494,0.285762,58913.0,58912.0,0.00025446]
[1724170790499,0.2859116,58913.0,58912.0,0.00025446]
[1724170790691,0.2859116,58913.0,58897.0,0.1736]
[1724170790692,0.067894,58902.0,58897.0,0.1736]
[1724170790898,0.23806589,58902.0,58901.0,0.428695]
[1724170791588,0.067897,58899.0,58898.0,3.77]
[1724170791791,0.217897,58899.0,58897.0,0.067899]
[1724170792088,0.3518,58898.0,58896.0,0.36100846]
[1724170792289,0.06808038,58897.0,58896.0,0.00020846]
[1724170792490,0.21808038,58897.0,58896.0,0.00020846]
[1724170794990,0.21908038,58897.0,58896.0,0.00020846]
[1724170799998,0.21908038,58897.0,58893.0,0.00017055]
[1724170799999,0.067903,58894.0,58893.0,0.00017055]
[1724170800302,0.588703,58894.0,58893.0,0.00017055]
[1724170801103,0.58884917,58894.0,58893.0,0.00017055]
[1724170801307,0.58984917,58894.0,58893.0,0.00017055]
[1724170802500,0.52194617,58894.0,58893.0,0.06807455]
[1724170803014,0.16114617,58894.0,58893.0,0.06807455]
[1724170803496,0.00563899,58898.0,58897.0,0.0679]
[1724170803702,0.16,58898.0,58897.0,0.0679]
[1724170804609,0.16016813,58898.0,58897.0,0.0679]
[1724170805408,0.16116813,58898.0,58897.0,0.0679]
[1724170806116,0.16116813,58898.0,58893.0,0.00017055]
[1724170806402,0.3608,58894.0,58893.0,0.00017055]
[1724170806608,0.5208,58894.0,58893.0,0.00017055]
[1724170807303,0.588703,58894.0,58893.0,0.00117055]
[1724170808002,0.656606,58894.0,58893.0,0.00117055]
[1724170808207,0.656606,58894.0,58883.0,0.5374]
[1724170808208,0.066909,58889.0,58886.0,0.05062414]
[1724170808412,0.067914,58885.0,58884.0,0.05062414]
[1724170808708,0.067915,58884.0,58882.0,0.067917]
[1724170808907,0.3518,58883.0,58882.0,0.067917]
[1724170809104,0.589716,58883.0,58882.0,0.067917]
[1724170809998,0.59534252,58883.0,58882.0,0.067917]
[1724170810504,0.067918,58881.0,58880.0,0.06740266]
[1724170810704,0.067919,58880.0,58879.0,0.06792]
[1724170811010,0.207919,58880.0,58879.0,0.06792]
[1724170811315,0.207919,58880.0,58879.0,0.11857345]
[1724170812601,0.20809258,58880.0,58879.0,0.11857345]
[1724170812806,0.20809258,58880.0,58879.0,0.06792]
[1724170813310,0.067922,58878.0,58877.0,0.05065345]
[1724170813515,0.135848,58876.0,58875.0,0.05064022]
[1724170813715,0.067926,58874.0,58873.0,0.05064022]
[1724170814015,0.067926,58874.0,58871.0,0.05064022]
[1724170814016,0.067927,58873.0,58871.0,0.05064022]
[1724170814219,0.06793,58871.0,58870.0,0.05064022]
[1724170814417,0.22793,58871.0,58870.0,0.05064022]
[1724170814620,0.22793,58871.0,58866.0,0.42820266]
[1724170814621,0.22793,58871.0,58867.0,0.06740266]
[1724170814809,0.067931,58870.0,58869.0,0.067932]
[1724170815114,0.14,58870.0,58866.0,0.42820266]
[1724170815409,0.14,58870.0,58865.0,0.067935]
[1724170815410,0.067937,58865.0,58864.0,0.06740266]
[1724170815610,0.17,58865.0,58861.0,0.06740266]
[1724170815815,0.06794,58862.0,58861.0,0.06740266]
[1724170816006,0.06794,58862.0,58860.0,0.23450266]
[1724170816311,0.06794,58862.0,58860.0,0.235041]
[1724170816613,0.067941,58861.0,58860.0,0.235041]
[1724170816914,0.06808682,58861.0,58860.0,0.235041]
[1724170817112,0.06808682,58861.0,58860.0,0.30244366]
[1724170817313,0.00014582,58861.0,58860.0,0.30244366]
[1724170817516,0.00014582,58861.0,58860.0,0.235041]
[1724170817908,0.00014582,58861.0,58860.0,1.144721]
[1724170818104,0.00559426,58865.0,58860.0,1.144721]
[1724170818409,0.067927,58873.0,58872.0,0.067928]
[1724170818618,0.16,58873.0,58872.0,0.067928]
[1724170818808,0.5253,58877.0,58872.0,0.067928]
[1724170818809,0.00579632,58877.0,58876.0,0.067924]
[1724170819117,0.00025468,58878.0,58877.0,0.067923]
[1724170819516,0.00035153,58878.0,58877.0,1.11290107]
[1724170819704,0.00568111,58880.0,58879.0,0.13584]
[1724170819908,0.428704,58894.0,58878.0,0.93522]
[1724170820108,0.15,58894.0,58893.0,0.067904]
[1724170820310,0.15,58894.0,58893.0,0.428704]
[1724170820515,0.15,58894.0,58893.0,0.47939259]
[1724170820516,0.00563627,58894.0,58893.0,0.47939259]
[1724170820712,0.3518,58898.0,58893.0,0.3608]
[1724170820903,0.4918,58898.0,58895.0,0.05069371]
[1724170821109,0.49750495,58898.0,58895.0,0.05069371]
[1724170821416,0.05053676,58910.0,58897.0,0.3608]
[1724170821617,0.3608,58914.0,58907.0,0.11857493]
[1724170821618,0.067881,58913.0,58907.0,0.11857493]
[1724170821814,0.3518,58912.0,58907.0,0.05068693]
[1724170822015,0.3518,58912.0,58905.0,0.3608]
[1724170822016,0.5018,58912.0,58906.0,0.05068693]
[1724170822211,0.067886,58909.0,58905.0,0.05068693]
[1724170822613,0.067886,58909.0,58904.0,0.05068693]
[1724170822813,0.067886,58909.0,58903.0,0.11857993]
[1724170823019,0.067886,58909.0,58904.0,0.05068693]
[1724170823215,0.3608,58908.0,58906.0,0.001]
[1724170824532,0.5308,58908.0,58906.0,0.001]
[1724170824713,0.1683,58907.0,58904.0,0.002]
[1724170825018,0.067892,58904.0,58892.0,0.05068693]
[1724170825217,0.3518,58894.0,58892.0,0.067904]
[1724170825417,0.065899,58898.0,58892.0,0.067904]
[1724170825623,0.3518,58900.0,58898.0,0.067898]
[1724170825921,0.067893,58904.0,58898.0,0.428698]
[1724170826221,0.215893,58904.0,58898.0,0.428698]
[1724170826423,0.067896,58901.0,58898.0,0.3608]
[1724170826719,0.067898,58899.0,58895.0,0.00025468]
[1724170827219,0.067901,58896.0,58895.0,0.00025468]
[1724170827417,0.227901,58896.0,58895.0,0.00025468]
[1724170828016,0.227901,58896.0,58895.0,0.00325468]
[1724170828619,0.227901,58896.0,58895.0,0.00025468]
[1724170828815,0.227901,58896.0,58895.0,0.00225468]
[1724170828816,0.23308482,58896.0,58895.0,0.00225468]
[1724170829123,0.16618382,58896.0,58895.0,0.00225468]
[1724170829325,0.16618382,58896.0,58895.0,0.07015668]
[1724170829621,0.16618382,58896.0,58895.0,0.00325468]
[1724170829819,0.52698382,58896.0,58895.0,0.00325468]
[1724170830018,0.59488482,58896.0,58895.0,0.00325468]
[1724170830217,0.59488482,58896.0,58877.0,4.1308]
[1724170830218,0.067911,58887.0,58882.0,0.05068693]
[1724170830421,0.7126,58885.0,58881.0,0.067918]
[1724170830618,0.8726,58885.0,58876.0,0.067923]
[1724170830924,0.7126,58879.0,58876.0,0.067923]
[1724170831223,0.8726,58879.0,58876.0,0.067923]
[1724170831617,0.8696,58879.0,58876.0,0.067923]
[1724170831814,0.8696,58879.0,58870.0,0.05068693]
[1724170832031,0.5178,58879.0,58872.0,0.05068693]
[1724170832318,0.3578,58879.0,58878.0,0.067922]
[1724170832524,0.00025468,58883.0,58882.0,0.067917]
[1724170833122,0.00632006,58883.0,58882.0,0.067917]
[1724170833325,0.00632006,58883.0,58882.0,0.577397]
[1724170833522,0.00025468,58883.0,58882.0,0.235217]
[1724170834018,0.00025468,58883.0,58882.0,4.005217]
[1724170834222,0.00025468,58883.0,58882.0,4.514697]
[1724170834425,0.00025468,58883.0,58882.0,4.914697]
[1724170834623,0.00025468,58883.0,58882.0,4.005217]
[1724170834920,0.00025468,58883.0,58882.0,4.007217]
[1724170835425,0.3608,58895.0,58882.0,4.84878]
[1724170835621,0.06791,58888.0,58887.0,0.3608]
[1724170835825,0.3518,58892.0,58884.0,0.067914]
[1724170835826,0.067913,58886.0,58884.0,0.067914]
[1724170836218,0.1685,58885.0,58884.0,0.067914]
[1724170836417,0.067908,58890.0,58882.0,3.772]
[1724170836623,0.06791,58889.0,58886.0,0.067911]
[1724170836823,0.5308,58889.0,58886.0,0.067911]
[1724170837130,0.5308,58889.0,58882.0,3.839916]
[1724170837131,0.067916,58883.0,58882.0,3.839916]
[1724170838019,0.067912,58887.0,58885.0,0.067913]
[1724170838326,0.067912,58887.0,58886.0,0.002]
[1724170838520,0.3608,58889.0,58888.0,0.06791]
[1724170839725,0.06816168,58891.0,58890.0,0.067908]
[1724170839925,0.22816168,58891.0,58890.0,0.067908]
[1724170840234,0.23432568,58891.0,58890.0,0.067908]
[1724170841515,0.23432568,58891.0,58888.0,0.002]
[1724170841516,0.067909,58889.0,58888.0,0.002]
[1724170841716,0.227909,58889.0,58888.0,0.002]
[1724170841920,0.227909,58889.0,58887.0,0.067911]
[1724170841921,0.06791,58888.0,58887.0,0.067911]
[1724170842126,0.06591,58888.0,58887.0,0.067911]
[1724170842434,0.21591,58888.0,58887.0,0.067911]
[1724170842818,0.21591,58888.0,58884.0,0.3608]
[1724170842819,0.067913,58885.0,58884.0,0.3608]
[1724170843121,0.207913,58885.0,58884.0,0.3608]
[1724170843330,0.207913,58885.0,58884.0,0.428715]
[1724170843630,0.14,58885.0,58884.0,0.428715]
[1724170843826,0.138,58885.0,58884.0,0.428715]
[1724170844628,0.138,58885.0,58884.0,0.430715]
[1724170846331,0.1486,58886.0,58885.0,0.067913]
[1724170846533,0.2986,58886.0,58885.0,0.067913]
[1724170847726,0.30479584,58886.0,58885.0,0.067913]
[1724170848228,0.30479584,58886.0,58885.0,0.069913]
[1724170848428,0.00025468,58891.0,58890.0,0.067908]
[1724170848637,0.00025468,58891.0,58890.0,1.406056]
[1724170848834,0.067901,58896.0,58890.0,1.406056]
[1724170848835,0.1464,58901.0,58897.0,0.067896]
[1724170849134,0.39032626,58901.0,58900.0,0.067896]
[1724170850832,0.32243026,58901.0,58900.0,0.067896]
[1724170851032,0.00603026,58901.0,58900.0,0.577216]
[1724170851231,0.00025468,58906.0,58905.0,0.06789]
[1724170851538,0.15025468,58906.0,58905.0,3.83789]
[1724170851724,0.15630126,58906.0,58905.0,3.83789]
[1724170851928,0.22419026,58906.0,58905.0,3.83789]
[1724170852432,0.23019026,58906.0,58905.0,3.83789]
[1724170853234,0.28072702,58906.0,58905.0,3.83789]
[1724170853534,0.23419026,58906.0,58905.0,3.83789]
[1724170854545,0.28462486,58906.0,58905.0,0.06789]
[1724170855136,0.28462486,58906.0,58901.0,3.837894]
[1724170855137,0.21673586,58906.0,58901.0,3.837894]
[1724170855439,0.3608,58903.0,58901.0,0.067894]
[1724170855640,0.5108,58903.0,58901.0,0.067894]
[1724170855832,0.067894,58902.0,58901.0,0.067894]
[1724170856032,0.217894,58902.0,58901.0,0.067894]
[1724170856833,0.217894,58902.0,58897.0,3.77]
[1724170856834,0.002,58903.0,58902.0,0.067894]
[1724170858031,0.00630126,58906.0,58905.0,0.06789]
[1724170858742,0.17630126,58906.0,58905.0,0.06789]
[1724170859741,0.18230126,58906.0,58905.0,0.06789]
[1724170861135,0.18230126,58906.0,58898.0,0.05074927]
[1724170861335,0.067896,58900.0,58899.0,0.067897]
[1724170861545,0.0679,58897.0,58896.0,0.067901]
[1724170861743,0.0679,58897.0,58895.0,0.36105468]
[1724170861744,0.067901,58896.0,58895.0,0.36105468]
[1724170861938,0.207901,58896.0,58895.0,0.36105468]
[1724170862137,0.559701,58896.0,58895.0,0.36105468]
[1724170862331,0.559701,58896.0,58895.0,0.42895668]
[1724170862750,0.067906,58892.0,58889.0,0.11865727]
[1724170862933,0.3608,58891.0,58889.0,0.11865727]
[1724170863139,0.3608,58891.0,58889.0,0.067908]
[1724170863339,0.3518,58890.0,58886.0,0.05074927]
[1724170863536,0.3518,58890.0,58886.0,0.067912]
[1724170863537,0.54223971,58890.0,58886.0,0.067912]
[1724170864138,0.05043971,58888.0,58886.0,0.067912]
[1724170864335,0.16,58888.0,58886.0,0.067912]
[1724170864744,0.158,58888.0,58886.0,0.067912]
[1724170865138,0.158,58888.0,58887.0,0.067911]
[1724170865850,0.158,58888.0,58887.0,0.11866027]
[1724170866546,0.22591,58888.0,58887.0,0.11866027]
[1724170867341,0.22591,58888.0,58887.0,0.12066027]
[1724170867544,0.22591,58888.0,58887.0,0.069911]
[1724170867944,0.59412,58890.0,58887.0,0.069911]
[1724170867945,0.05273181,58890.0,58887.0,0.069911]
[1724170868145,0.3694091,58891.0,58887.0,0.002]
[1724170868352,0.5370491,58891.0,58890.0,0.067908]
[1724170868539,0.58746091,58891.0,58890.0,0.067908]
[1724170868947,0.58746091,58891.0,58887.0,0.002]
[1724170869152,0.3518,58888.0,58887.0,0.002]
[1724170869351,0.5218,58888.0,58887.0,0.002]
[1724170869565,0.58971,58888.0,58887.0,0.002]
[1724170870069,0.57221181,58888.0,58882.0,0.1189509]
[1724170870372,0.58971,58888.0,58887.0,0.002]
[1724170871566,0.065913,58886.0,58883.0,0.067916]
[1724170871776,0.375214,58885.0,58883.0,0.067916]
[1724170872067,0.525214,58885.0,58883.0,0.067916]
[1724170872767,0.067915,58884.0,58883.0,0.067916]
[1724170872975,0.237915,58884.0,58883.0,0.067916]
[1724170873568,0.237915,58884.0,58883.0,0.069916]
[1724170873767,0.66663,58884.0,58883.0,0.002]
[1724170874074,0.66663,58884.0,58876.0,0.11870322]
[1724170874075,0.5308,58884.0,58876.0,0.11870322]
[1724170874268,0.3518,58880.0,58876.0,0.067923]
[1724170874464,0.065923,58877.0,58876.0,0.067923]
[1724170874669,0.215923,58877.0,58876.0,0.11870322]
[1724170875269,0.215923,58877.0,58876.0,0.067923]
[1724170875471,0.215923,58877.0,58876.0,0.11870322]
[1724170875672,0.21872625,58877.0,58876.0,0.11870322]
[1724170875870,0.15,58877.0,58876.0,0.067923]
[1724170876068,0.15280329,58877.0,58876.0,0.067923]
[1724170876265,0.15,58877.0,58876.0,0.11870322]
[1724170876467,0.15280322,58877.0,58876.0,3.88870322]
[1724170876668,0.15280322,58877.0,58876.0,3.837923]
[1724170877168,0.15887875,58877.0,58876.0,3.837923]
[1724170877976,0.15887875,58877.0,58876.0,3.88870322]
[1724170878278,0.15887875,58877.0,58876.0,3.905847]
[1724170878467,0.15887875,58877.0,58876.0,3.9565747]
[1724170878668,0.00887875,58877.0,58876.0,3.9565747]
[1724170878868,0.00887875,58877.0,58876.0,3.905847]
[1724170879969,0.00607553,58877.0,58876.0,3.905847]
[1724170880169,0.00280311,58877.0,58876.0,3.905847]
[1724170880964,0.41120701,58891.0,58877.0,0.50952]
[1724170881169,0.16,58891.0,58890.0,0.067908]
[1724170881876,0.16604461,58891.0,58890.0,0.067908]
[1724170882077,0.00025468,58896.0,58895.0,0.067902]
[1724170882669,0.00025468,58896.0,58895.0,3.837902]
[1724170882973,0.17025468,58896.0,58895.0,3.837902]
[1724170883369,0.95075568,58896.0,58895.0,3.77]
[1724170883881,0.067911,58888.0,58885.0,0.36105468]
[1724170884072,0.067911,58888.0,58886.0,0.067911]
[1724170884271,0.067911,58888.0,58885.0,0.36105468]
[1724170884464,0.067912,58886.0,58885.0,0.00025468]
[1724170884771,0.067912,58886.0,58877.0,0.06770696]
[1724170884772,0.237912,58886.0,58878.0,0.05072337]
[1724170885070,0.3608,58880.0,58876.0,0.05072337]
[1724170885277,0.3608,58880.0,58875.0,0.3608]
[1724170885278,0.067924,58876.0,58875.0,0.41152337]
[1724170885470,0.237924,58876.0,58875.0,0.41152337]
[1724170885973,0.17,58876.0,58875.0,0.47944837]
[1724170886181,0.17,58876.0,58875.0,0.428725]
[1724170887074,0.17,58876.0,58875.0,0.47949029]
[1724170887275,0.17,58876.0,58875.0,0.428725]
[1724170887673,0.17,58876.0,58875.0,0.47950284]
[1724170888382,0.17,58876.0,58875.0,0.428725]
[1724170888683,0.17,58876.0,58875.0,0.47952066]
[1724170888872,0.17,58876.0,58875.0,0.428725]
[1724170889270,0.237924,58876.0,58875.0,0.428725]
[1724170890670,0.17,58876.0,58875.0,0.428725]
[1724170890977,0.175156,58876.0,58875.0,0.428725]
[1724170891777,0.005156,58876.0,58875.0,0.49643196]
[1724170891977,0.1485,58879.0,58875.0,0.42850696]
[1724170892176,0.1485,58879.0,58878.0,0.067922]
[1724170892583,0.05551743,58879.0,58878.0,0.13562896]
[1724170892778,0.00509886,58879.0,58878.0,0.645364]
[1724170892981,0.00280324,58879.0,58878.0,0.645364]
[1724170893186,0.00543849,58881.0,58880.0,0.135838]
[1724170893382,0.00824162,58881.0,58880.0,0.135838]
[1724170893586,0.00824162,58881.0,58880.0,0.496638]
[1724170894791,0.00824162,58881.0,58880.0,0.428719]
[1724170895187,0.00543849,58881.0,58880.0,0.4965295]
[1724170895492,0.24335649,58881.0,58880.0,0.067919]
[1724170895798,0.00543849,58881.0,58880.0,0.64524612]
[1724170895982,0.17543849,58881.0,58880.0,0.067919]
[1724170896187,0.17543849,58881.0,58880.0,0.1525527]
[1724170896391,0.24335649,58881.0,58880.0,0.067919]
[1724170898985,0.17543849,58881.0,58880.0,0.135838]
[1724170899388,0.17543849,58881.0,58880.0,0.067919]
[1724170900686,0.24335649,58881.0,58880.0,0.067919]
[1724170901088,0.17543849,58881.0,58880.0,0.067919]
[1724170902384,0.17543849,58881.0,58880.0,0.135838]
[1724170902983,0.17543849,58881.0,58880.0,0.203757]
[1724170903299,0.17543849,58881.0,58880.0,0.135838]
[1724170904188,0.00543849,58881.0,58880.0,0.135838]
[1724170905186,0.00824149,58881.0,58880.0,0.135838]
[1724170905689,0.00824149,58881.0,58880.0,0.067919]
[1724170906193,0.17824149,58881.0,58880.0,0.067919]
[1724170906803,0.17824152,58881.0,58880.0,0.067919]
[1724170907495,0.00824152,58881.0,58880.0,0.067919]
[1724170907702,0.00824152,58881.0,58880.0,0.135838]
[1724170907892,0.00824152,58881.0,58880.0,0.203757]
[1724170908093,0.00305771,58881.0,58880.0,0.135838]
[1724170909204,0.00305771,58881.0,58880.0,0.50023077]
[1724170909395,0.00305771,58881.0,58880.0,1.40975077]
[1724170909901,0.00305771,58881.0,58880.0,0.6620727]
[1724170910196,0.00516638,58882.0,58881.0,0.135836]
[1724170910402,0.00280293,58882.0,58881.0,0.135836]
[1724170910597,0.16038402,58887.0,58886.0,0.067912]
[1724170910810,0.30318692,58887.0,58886.0,0.067912]
[1724170911101,0.30318693,58887.0,58886.0,0.067912]
[1724170911893,0.05074249,58892.0,58891.0,0.067907]
[1724170912093,0.05555876,58899.0,58898.0,0.067898]
[1724170912289,0.00280243,58899.0,58898.0,0.428698]
[1724170912494,0.00280243,58899.0,58898.0,4.708058]
[1724170912693,0.00280243,58899.0,58898.0,4.79279825]
[1724170912997,0.06789,58905.0,58898.0,4.79279825]
[1724170912998,0.06789,58905.0,58904.0,0.067892]
[1724170913303,0.07069206,58905.0,58904.0,0.067892]
[1724170914193,0.00280206,58905.0,58904.0,0.067892]
[1724170914595,0.00780206,58905.0,58904.0,0.067892]
[1724170914796,0.01517389,58905.0,58904.0,0.067892]
[1724170915099,0.01797602,58905.0,58904.0,0.067892]
[1724170918805,0.01797602,58905.0,58904.0,0.135784]
[1724170919304,0.01797595,58905.0,58904.0,0.135784]
[1724170920098,0.00025468,58910.0,58906.0,0.067889]
[1724170920306,0.00025468,58910.0,58909.0,0.135772]
[1724170921102,0.36589587,58916.0,58915.0,0.067879]
[1724170921805,0.43377387,58916.0,58915.0,0.067879]
[1724170921997,0.43377387,58916.0,58915.0,3.837879]
[1724170922904,0.43377387,58916.0,58915.0,0.067879]
[1724170923402,0.43377387,58916.0,58904.0,0.067891]
[1724170923403,0.067891,58905.0,58904.0,0.067891]
[1724170923603,0.578691,58905.0,58904.0,0.067891]
[1724170924400,0.067893,58903.0,58899.0,0.00025468]
[1724170924608,0.067896,58901.0,58899.0,0.00025468]
[1724170925000,0.428696,58900.0,58899.0,0.00025468]
[1724170925196,0.588696,58900.0,58899.0,0.00025468]
[1724170926004,0.586696,58900.0,58899.0,0.00025468]
[1724170926505,0.3608,58900.0,58899.0,0.06815168]
[1724170926905,0.3608,58900.0,58899.0,0.07015168]
[1724170927410,0.0051575,58903.0,58902.0,0.067894]
[1724170927604,0.2895,58906.0,58905.0,0.06789]
[1724170928104,0.2945458,58906.0,58905.0,0.06789]
[1724170929008,0.3608,58912.0,58903.0,0.428692]
[1724170929306,0.3608,58912.0,58906.0,0.067889]
[1724170929307,0.00508439,58908.0,58906.0,0.067889]
[1724170930205,0.00425468,58907.0,58906.0,0.067889]
[1724170930405,0.1511,58913.0,58912.0,0.067882]
[1724170930702,0.1511,58913.0,58912.0,0.428682]
[1724170931103,0.217972,58921.0,58920.0,0.067873]
[1724170931405,0.369072,58921.0,58920.0,0.067873]
[1724170931710,0.37430287,58921.0,58920.0,0.067873]
[1724170933600,0.38830287,58921.0,58920.0,0.068873]
[1724170934109,0.40230287,58921.0,58920.0,0.068873]
[1724170935405,0.54230287,58921.0,58920.0,0.068873]
[1724170935604,0.067877,58918.0,58917.0,0.067876]
[1724170935802,0.067878,58916.0,58915.0,0.00025468]
[1724170936004,0.237878,58916.0,58915.0,0.00025468]
[1724170936211,0.598678,58916.0,58915.0,0.00025468]
[1724170936807,0.237878,58916.0,58915.0,0.00025468]
[1724170937011,0.251878,58916.0,58915.0,0.00025468]
[1724170937207,0.198,58916.0,58915.0,0.06913368]
[1724170938613,0.028,58916.0,58915.0,0.06913368]
[1724170940308,0.198,58916.0,58915.0,0.06913368]
[1724170941921,0.198,58916.0,58915.0,0.11982831]
[1724170942309,0.198,58916.0,58915.0,0.11989962]
[1724170943912,0.028,58916.0,58915.0,0.11989962]
[1724170944120,0.028,58916.0,58915.0,0.06913368]
[1724170944315,0.028,58916.0,58915.0,0.11989556]
[1724170945020,0.028,58916.0,58915.0,0.06913368]
[1724170947022,0.028,58916.0,58915.0,0.13701268]
[1724170947221,0.028,58916.0,58915.0,0.71409168]
[1724170947222,0.014,58916.0,58915.0,0.71409168]
[1724170947419,0.00025468,58926.0,58925.0,0.067867]
[1724170947615,0.20812068,58926.0,58925.0,0.067867]
[1724170947820,0.20812068,58926.0,58925.0,3.837867]
[1724170948717,0.56692068,58926.0,58925.0,0.001]
[1724170948919,0.067873,58920.0,58919.0,0.05074739]
[1724170949123,0.3518,58919.0,58915.0,0.05100207]
[1724170949326,0.067878,58916.0,58915.0,0.00025468]
[1724170949625,0.066878,58916.0,58915.0,0.00025468]
[1724170949823,0.066878,58916.0,58915.0,0.06813368]
[1724170950417,0.274756,58916.0,58915.0,0.00025468]
[1724170950631,0.067885,58910.0,58909.0,0.05074739]
[1724170950827,0.3518,58910.0,58908.0,0.05074739]
[1724170951028,0.067886,58909.0,58908.0,0.05074739]
[1724170951228,1.087966,58909.0,58904.0,0.05076356]
[1724170951432,1.087966,58909.0,58898.0,0.067898]
[1724170951433,0.64590174,58909.0,58899.0,0.05076356]
[1724170951631,0.5108,58909.0,58899.0,0.11866056]
[1724170951833,0.57801574,58909.0,58899.0,0.067897]
[1724170952024,0.7126,58904.0,58898.0,0.00025468]
[1724170952328,0.067896,58901.0,58898.0,0.00025468]
[1724170952626,0.235896,58901.0,58898.0,0.00025468]
[1724170953227,0.235896,58901.0,58898.0,0.07015268]